[Event "Titled Tuesday Blitz April 19 Early 2022"]
[White "Zhu, Jiner"]
[Black "Vlassov, Nikolai"]
[WhiteFideId "8608059"]
[BlackFideId "4103360"]
[WhiteElo "2698"]
[BlackElo "2597"]
[Result "0-1"]
[Round "11"]
[TimeControl "180+1"]
[Date "2022.04.19"]
[WhiteClock "0:01:26"]
[BlackClock "0:00:57"]

1. e4 {[%clk 0:03:00]}  Nc6 {[%clk 0:02:59]} 2. d4 {[%clk 0:03:00]}  d5 {[%clk 0:02:59]} 3. exd5 {[%clk 0:02:59]}  Qxd5 {[%clk 0:02:59]} 4. c3 {[%clk 0:02:56]}  Nf6 {[%clk 0:02:59]} 5. Nf3 {[%clk 0:02:54]}  Bg4 {[%clk 0:02:59]} 6. Be2 {[%clk 0:02:54]}  O-O-O {[%clk 0:02:59]} 7. h3 {[%clk 0:02:54]}  Bh5 {[%clk 0:02:59]} 8. Be3 {[%clk 0:02:49]}  e5 {[%clk 0:02:58]} 9. dxe5 {[%clk 0:02:45]}  Qxd1+ {[%clk 0:02:52]} 10. Bxd1 {[%clk 0:02:46]}  Nxe5 {[%clk 0:02:51]} 11. Be2 {[%clk 0:02:40]}  Bxf3 {[%clk 0:02:46]} 12. gxf3 {[%clk 0:02:40]}  Nd5 {[%clk 0:02:37]} 13. Na3 {[%clk 0:02:29]}  Bxa3 {[%clk 0:02:24]} 14. bxa3 {[%clk 0:02:28]}  Nxc3 {[%clk 0:02:24]} 15. Rc1 {[%clk 0:02:16]}  Nd3+ {[%clk 0:02:10]} 16. Bxd3 {[%clk 0:02:15]}  Rxd3 {[%clk 0:02:10]} 17. Kf1 {[%clk 0:02:09]}  Rhd8 {[%clk 0:02:00]} 18. Kg2 {[%clk 0:02:08]}  Nd5 {[%clk 0:02:00]} 19. Rhe1 {[%clk 0:02:04]}  Rxa3 {[%clk 0:01:56]} 20. Rc2 {[%clk 0:01:59]}  Re8 {[%clk 0:01:49]} 21. Bc1 {[%clk 0:01:54]}  Rxe1 {[%clk 0:01:46]} 22. Bxa3 {[%clk 0:01:54]}  g5 {[%clk 0:01:36]} 23. Bc1 {[%clk 0:01:53]}  h6 {[%clk 0:01:29]} 24. Kg3 {[%clk 0:01:47]}  f5 {[%clk 0:01:24]} 25. f4 {[%clk 0:01:46]}  g4 {[%clk 0:01:12]} 26. hxg4 {[%clk 0:01:38]}  Rg1+ {[%clk 0:01:11]} 27. Kh4 {[%clk 0:01:38]}  Rxg4+ {[%clk 0:01:11]} 28. Kh5 {[%clk 0:01:38]}  Kd7 {[%clk 0:01:03]} 29. Kxh6 {[%clk 0:01:36]}  Ke6 {[%clk 0:01:03]} 30. Re2+ {[%clk 0:01:28]}  Kf7 {[%clk 0:01:01]} 31. Re5 {[%clk 0:01:26]}  Nf6 {[%clk 0:00:57]} 0-1


[Site "https://www.chess.com"]

[Event "Titled Tuesday Blitz April 19 Early 2022"]
[White "Zor, Alber Kadir"]
[Black "Mokshanov, Alexey"]
[WhiteFideId "6353169"]
[BlackFideId "24121657"]
[WhiteElo "1966"]
[BlackElo "2141"]
[Result "1-0"]
[Round "11"]
[TimeControl "180+1"]
[Date "2022.04.19"]
[WhiteClock "0:00:48"]
[BlackClock "0:01:27"]

1. e4 {[%clk 0:03:00]}  e6 {[%clk 0:02:59]} 2. d4 {[%clk 0:02:58]}  d5 {[%clk 0:03:00]} 3. Nc3 {[%clk 0:02:57]}  Nf6 {[%clk 0:03:00]} 4. Bg5 {[%clk 0:02:55]}  Be7 {[%clk 0:02:59]} 5. e5 {[%clk 0:02:55]}  Nfd7 {[%clk 0:03:00]} 6. h4 {[%clk 0:02:55]}  Nc6 {[%clk 0:03:00]} 7. Qd2 {[%clk 0:02:43]}  f6 {[%clk 0:03:00]} 8. exf6 {[%clk 0:02:37]}  Nxf6 {[%clk 0:03:00]} 9. O-O-O {[%clk 0:02:31]}  O-O {[%clk 0:03:01]} 10. f3 {[%clk 0:02:23]}  e5 {[%clk 0:02:55]} 11. dxe5 {[%clk 0:02:21]}  Nxe5 {[%clk 0:02:55]} 12. Nxd5 {[%clk 0:02:13]}  Nxd5 {[%clk 0:02:55]} 13. Qxd5+ {[%clk 0:02:07]}  Qxd5 {[%clk 0:02:55]} 14. Rxd5 {[%clk 0:02:07]}  Bd6 {[%clk 0:02:48]} 15. Nh3 {[%clk 0:01:59]}  Be6 {[%clk 0:02:38]} 16. Rd4 {[%clk 0:01:59]}  Rae8 {[%clk 0:02:37]} 17. Bb5 {[%clk 0:01:51]}  Nc6 {[%clk 0:02:02]} 18. Rdd1 {[%clk 0:01:43]}  Bxa2 {[%clk 0:01:53]} 19. b3 {[%clk 0:01:38]}  Ba3+ {[%clk 0:01:52]} 20. Kd2 {[%clk 0:01:35]}  h6 {[%clk 0:01:47]} 21. Ra1 {[%clk 0:01:11]}  hxg5 {[%clk 0:01:43]} 22. Rxa2 {[%clk 0:01:10]}  Rd8+ {[%clk 0:01:43]} 23. Kc3 {[%clk 0:00:52]}  Nd4 {[%clk 0:01:27]} 24. Bc4+ {[%clk 0:00:48]} 1-0